bitfinex/quotes_ETHUSD_20240721
["timestamp","ask_amount","ask_price","bid_price","bid_amount"]
[1721599396138,2.82398,3541.1,3539.9,2.89]
[1721599396340,2.82364,3541.6,3540.0,1.0409]
[1721599396686,0.4995,3542.0,3540.0,1.0409]
[1721599396687,2.8239,3541.2,3540.0,1.0409]
[1721599396882,2.82438,3540.6,3539.9,2.89]
[1721599397105,2.82474,3540.2,3538.8,5.23081]
[1721599397245,2.82474,3540.2,3538.9,4.694]
[1721599397246,2.82477,3540.1,3538.9,4.694]
[1721599397451,2.82474,3540.2,3538.9,4.694]
[1721599397683,2.82471,3540.2,3538.9,4.694]
[1721599397910,2.82471,3540.2,3538.6,2.89]
[1721599397911,2.825,3539.9,3539.0,0.992474]
[1721599398072,2.82469,3540.3,3538.6,2.89]
[1721599398281,2.82401,3541.1,3538.6,2.89]
[1721599398282,2.82535,3539.4,3538.6,2.89]
[1721599398679,2.82508,3539.8,3538.6,2.89]
[1721599398880,2.82494,3539.9,3537.9,0.05651238]
[1721599399056,2.8255,3539.2,3537.9,0.05651238]
[1721599399254,2.8255,3539.2,3538.0,0.57730424]
[1721599399794,2.82532,3539.5,3538.0,0.57730424]
[1721599400000,2.82488,3540.0,3538.6,2.82594]
[1721599400210,2.82463,3540.3,3538.9,2.989]
[1721599400530,2.82477,3540.2,3539.0,0.75762356]
[1721599400688,2.8249,3540.0,3539.0,0.75762356]
[1721599400893,2.8249,3540.0,3538.7,2.989]
[1721599401213,2.82468,3540.3,3538.8,3.0]
[1721599401391,5.2509,3541.0,3538.8,5.8258]
[1721599401592,2.82471,3540.2,3538.8,5.8258]
[1721599401792,2.8245,3540.5,3538.9,5.81466]
[1721599402035,2.8243,3540.7,3539.3,5.81441]
[1721599402191,2.82423,3540.8,3539.4,5.88179664]
[1721599402393,2.82448,3540.5,3539.4,3.0]
[1721599402629,2.82416,3540.9,3539.5,2.82525]
[1721599402930,2.82416,3540.9,3539.6,3.05648665]
[1721599403141,2.82424,3540.8,3539.7,0.88817367]
[1721599403296,2.82408,3541.0,3539.7,0.94466033]
[1721599403497,2.82405,3541.1,3539.8,0.05648666]
[1721599403716,2.82392,3541.2,3539.9,2.82492]
[1721599403998,2.82381,3541.4,3540.1,2.82476]
[1721599404212,2.82381,3541.4,3540.2,0.92708623]
[1721599404421,2.3471,3541.7,3540.2,3.87060911]
[1721599404595,6.24925,3542.1,3540.2,3.85960911]
[1721599404596,3.426,3542.1,3540.2,3.85960911]
[1721599404944,2.82389,3541.3,3540.2,0.87060911]
[1721599405100,2.8239,3541.2,3540.2,3.87060911]
[1721599405426,2.82374,3541.4,3540.3,1.08495091]
[1721599405792,2.82385,3541.3,3540.3,1.08495091]
[1721599406036,2.82385,3541.3,3540.3,1.14142514]
[1721599406232,2.82391,3541.2,3540.3,1.14142514]
[1721599406447,2.82417,3540.9,3540.3,1.08495091]
[1721599406594,2.82417,3540.9,3539.1,2.8255]
[1721599406595,2.82454,3540.4,3540.1,3.0]
[1721599406903,2.82456,3540.4,3539.4,2.2562]
[1721599407110,2.82462,3540.3,3539.4,2.2562]
[1721599407305,2.82447,3540.5,3539.4,2.2562]
[1721599407520,2.82447,3540.5,3539.4,5.2562]
[1721599407719,2.82454,3540.4,3539.5,0.52562]
[1721599407890,2.8243,3540.7,3539.5,3.52562]
[1721599408092,2.8243,3540.7,3539.5,3.58210641]
[1721599408324,2.82423,3540.8,3539.5,3.58210641]
[1721599408628,2.82423,3540.8,3539.5,6.40734641]
[1721599408828,2.82469,3540.3,3539.6,1.33575464]
[1721599409027,2.82446,3540.5,3539.6,1.33575464]
[1721599409235,9.8497,3541.3,3539.6,1.33575464]
[1721599409236,2.82438,3540.6,3539.6,1.33575464]
[1721599409448,2.82438,3540.6,3539.5,3.52562]
[1721599409598,2.82463,3540.3,3539.5,3.52562]
[1721599409797,2.82448,3540.5,3539.5,3.52562]
[1721599410137,2.82453,3540.4,3539.5,3.52562]
[1721599410300,2.82438,3540.6,3539.5,3.52562]
[1721599410498,2.8247,3540.2,3539.6,0.578182]
[1721599410808,2.82471,3540.2,3539.6,0.578182]
[1721599411317,2.82477,3540.1,3539.6,0.578182]
[1721599411633,5.64931,3540.3,3539.6,0.578182]
[1721599411842,2.82462,3540.3,3539.0,5.989]
[1721599412046,2.82471,3540.2,3539.0,5.96710806]
[1721599412249,2.82462,3540.3,3539.0,8.79270806]
[1721599412423,2.82473,3540.2,3539.1,1.85146381]
[1721599412816,2.82494,3539.9,3539.1,1.85146381]
[1721599413008,2.82478,3540.1,3539.1,1.85146381]
[1721599413301,2.82463,3540.3,3539.1,1.85146381]
[1721599413506,2.82488,3540.0,3539.1,1.85146381]
[1721599413806,2.82426,3540.8,3539.2,1.24135719]
[1721599414120,2.82452,3540.5,3539.3,2.82541]
[1721599414472,2.82415,3540.9,3539.7,2.82508]
[1721599414737,2.82398,3541.1,3539.8,0.33899345]
[1721599415155,10.30382,3541.3,3539.9,2.2741]
[1721599415312,2.8239,3541.2,3539.9,5.2741]
[1721599415510,2.8239,3541.2,3540.0,2.82481]
[1721599415711,2.8239,3541.2,3540.1,3.90026978]
[1721599416035,2.82398,3541.1,3540.1,3.8437898]
[1721599416649,2.82398,3541.1,3540.1,0.8437898]
[1721599417419,6.13568,3541.5,3539.8,0.282508]
[1721599417746,2.82462,3540.3,3539.2,1.24135719]
[1721599417933,3.312,3541.5,3539.2,1.24135719]
[1721599417934,2.82494,3539.9,3539.2,1.24135719]
[1721599418134,2.82443,3540.6,3539.2,1.24135719]
[1721599418312,2.82398,3541.1,3539.2,1.24135719]
[1721599418313,2.82423,3540.8,3539.2,1.24135719]
[1721599418509,2.8246,3540.4,3539.2,1.24135719]
[1721599418822,2.8246,3540.4,3539.3,0.36993572]
[1721599419016,2.82423,3540.8,3539.3,0.36993572]
[1721599419017,2.82489,3540.0,3539.3,0.36993572]
[1721599419223,2.82487,3540.0,3539.3,0.36993572]
[1721599419436,2.82495,3539.9,3539.3,0.36993572]
[1721599419620,2.82502,3539.8,3539.3,0.36993572]
[1721599420122,2.82509,3539.7,3539.3,0.36993572]
[1721599420634,2.82518,3539.6,3539.3,0.36993572]
[1721599420934,2.82519,3539.6,3539.0,3.0]
[1721599421136,2.82509,3539.7,3539.0,3.0]
[1721599422363,2.82526,3539.5,3539.0,3.0]
[1721599422542,2.82479,3540.1,3539.0,3.0]
[1721599423060,2.8254,3539.4,3539.0,3.0]
[1721599423360,2.82549,3539.3,3539.0,3.0]
[1721599423543,2.82581,3538.8,3537.6,0.58603696]
[1721599423750,2.82596,3538.7,3537.7,2.91736562]
[1721599423935,2.82574,3538.9,3537.5,2.3234]
[1721599423936,2.82597,3538.6,3537.5,2.3234]
[1721599424139,2.82574,3538.9,3537.6,2.82676]
[1721599424322,7.48,3539.7,3537.7,0.98261478]
[1721599424323,2.82538,3539.4,3537.7,0.98261478]
[1721599424524,2.82545,3539.3,3538.1,2.82635]
[1721599424759,2.82545,3539.3,3538.0,2.82642]
[1721599424931,2.82545,3539.3,3538.1,0.57094625]
[1721599425133,2.82551,3539.2,3538.1,3.39730625]
[1721599425345,2.82539,3539.4,3538.2,2.82628]
[1721599426081,2.82539,3539.4,3538.1,0.57094625]
[1721599426082,2.82518,3539.6,3538.1,0.57094625]
[1721599426238,2.82501,3539.9,3538.5,2.82604]
[1721599426573,2.82501,3539.9,3538.7,2.82587]
[1721599426769,2.82501,3539.9,3538.8,3.05650447]
[1721599426985,2.82502,3539.8,3538.8,3.05650447]
[1721599427589,2.82511,3539.7,3538.9,3.0]
[1721599427772,2.82511,3539.7,3539.0,0.60565045]
[1721599427982,2.82511,3539.7,3538.7,3.0]
[1721599428172,2.82511,3539.7,3538.8,0.98241742]
[1721599428349,2.82486,3540.0,3538.9,0.98237993]
[1721599428687,2.82486,3540.0,3538.9,1.4735592]
[1721599428860,2.82486,3540.0,3539.0,0.98236456]
[1721599429180,10.792,3540.5,3539.1,0.82816738]
[1721599429394,3.312,3540.5,3539.3,2.82535]
[1721599429746,3.312,3540.5,3539.1,6.65373738]
[1721599429747,2.82461,3540.4,3539.1,8.12717083]
[1721599429947,2.82461,3540.4,3539.2,2.82549]
[1721599430176,3.312,3540.5,3539.3,3.0]
[1721599430402,6.13646,3540.5,3539.4,1.11270308]
[1721599430699,3.312,3541.0,3539.4,3.9945177]
[1721599430985,2.8243,3540.7,3539.5,8.28068982]
[1721599431182,3.312,3541.0,3539.5,3.0]
[1721599431398,2.82438,3540.6,3539.6,0.61719882]
[1721599431557,2.82455,3540.4,3539.6,0.61719882]
[1721599431761,2.82449,3540.5,3539.6,0.61719882]
[1721599432062,2.82459,3540.4,3539.6,0.61719882]
[1721599432266,2.8248,3540.1,3539.6,0.61719882]
[1721599432584,2.82453,3540.5,3539.2,2.82545]
[1721599432791,3.312,3540.5,3539.3,3.0]
[1721599433096,5.24331,3541.2,3538.6,2.05928515]
[1721599433097,2.82514,3539.7,3538.6,2.05928515]
[1721599433248,2.82514,3539.7,3538.0,4.85527937]
[1721599433249,2.82543,3539.3,3538.0,3.47603696]
[1721599433451,2.82543,3539.3,3538.1,0.98252482]
[1721599433452,2.82563,3539.1,3538.1,0.98252482]
[1721599433658,2.82563,3539.1,3538.2,0.66989948]
[1721599433865,2.82526,3539.5,3538.2,0.66989948]
[1721599434190,2.8251,3539.7,3538.5,2.82598]
[1721599434381,2.4407,3540.2,3538.5,2.82598]
[1721599434382,2.82501,3539.9,3538.6,0.05650556]
[1721599434564,3.312,3540.5,3538.6,0.05650556]
[1721599434565,2.82481,3540.1,3538.6,0.05650556]
[1721599434768,2.82481,3540.1,3539.0,2.82564]
[1721599435075,3.312,3540.5,3538.8,2.2732]
[1721599435076,2.82487,3540.0,3539.1,0.05650213]
[1721599435271,3.312,3540.5,3539.1,0.05650213]
[1721599435476,1.0792,3540.4,3539.1,0.05650213]
[1721599435792,2.82454,3540.4,3539.1,0.05650213]
[1721599435985,2.82454,3540.4,3539.0,5.82562]
[1721599436291,2.82454,3540.4,3539.2,2.82541]
[1721599436449,2.82454,3540.4,3539.3,3.05649554]
[1721599436650,2.82454,3540.4,3539.3,3.0]
[1721599436948,2.82438,3540.6,3539.4,3.407851]
[1721599437189,3.312,3541.0,3539.6,2.82511]
[1721599437190,2.82422,3540.8,3539.6,2.82511]
[1721599437501,7.48,3541.4,3539.7,2.88157841]
[1721599437656,7.48,3541.4,3539.6,3.9782]
[1721599437657,2.82399,3541.1,3539.6,5.09835]
[1721599437997,2.82423,3540.8,3539.7,3.0]
[1721599438230,2.82423,3540.8,3539.8,0.809835]
[1721599438712,2.82399,3541.1,3539.8,0.809835]
[1721599438713,2.82405,3541.1,3539.8,0.809835]
[1721599438918,2.82412,3541.0,3539.8,3.634835]
[1721599439114,2.82405,3541.1,3539.9,3.0]
[1721599439415,2.82405,3541.1,3539.8,0.809835]
[1721599439714,2.82405,3541.1,3539.9,0.8908205]
[1721599439916,2.82392,3541.2,3539.9,0.8908205]
[1721599440217,2.82402,3541.1,3539.9,0.8908205]
[1721599440516,2.82402,3541.1,3539.9,6.7157305]
[1721599440715,2.4407,3541.6,3539.9,6.7157305]
[1721599440716,2.82414,3540.9,3539.9,3.8908205]
[1721599440924,8.64173649,3542.3,3540.3,2.82461]
[1721599441141,8.64173649,3542.3,3540.7,2.82429]
[1721599441142,2.82318,3542.1,3540.7,2.82429]
[1721599441288,6.63478,3542.0,3540.8,3.0564732]
[1721599441487,0.4995,3542.0,3541.3,2.82375]
[1721599441814,0.4995,3542.0,3541.5,2.82365]
[1721599442026,0.4995,3542.0,3541.6,3.0]
[1721599442195,0.4995,3542.0,3541.7,2.82342]
[1721599442393,0.4995,3542.0,3541.6,2.82358]
[1721599442582,0.4995,3542.0,3541.8,3.0]
[1721599442782,0.4995,3542.0,3541.9,2.82334]
[1721599442979,0.4995,3542.0,3541.9,9.511363]
[1721599443419,0.11332,3545.0,3542.7,2.82265]
[1721599443619,1.76762534,3546.5,3545.1,2.82077]
[1721599443798,0.25,3548.1,3547.3,0.29436022]
[1721599444022,0.25,3548.1,3547.9,3.312]
[1721599444186,0.01320204,3548.1,3548.0,2.81848]
[1721599444389,0.0011,3550.9,3549.2,5.5979192]
[1721599444698,0.0011,3550.9,3548.0,48.94693291]
[1721599444699,3.312,3549.6,3548.8,5.5979192]
[1721599445038,0.0011,3550.9,3547.6,2.04381839]
[1721599445039,2.81769,3549.0,3547.6,2.04381839]
[1721599445331,2.81769,3549.0,3547.1,1.42623065]
[1721599445332,2.2599,3549.7,3546.2,2.94087889]
[1721599445625,3.312,3548.2,3546.6,2.89]
[1721599445863,2.81896,3547.4,3546.5,0.29508854]
[1721599446080,3.432056,3547.4,3546.5,0.29508854]
[1721599446358,6.251016,3547.4,3546.5,0.29508854]
[1721599446850,3.432056,3547.4,3546.5,0.29508854]
[1721599447055,5.63792,3547.4,3546.5,0.29508854]
[1721599447277,2.81896,3547.4,3546.5,0.29508854]
[1721599447453,3.412,3548.0,3546.6,2.04451094]
[1721599447454,2.81892,3547.5,3546.6,2.04451094]
[1721599447755,5.63787,3547.5,3546.6,0.57396282]
[1721599447916,0.563787,3547.4,3546.5,0.29508854]
[1721599448312,5.63787,3547.5,3546.6,1.47048196]
[1721599448547,8.45682,3547.5,3546.5,0.29508854]
[1721599449058,2.81957,3546.7,3546.5,0.29508854]
[1721599449455,2.81957,3546.7,3546.2,0.57396282]
[1721599449757,2.81962,3546.6,3546.3,3.02498674]
[1721599449957,5.63924,3546.6,3546.4,0.98040957]
[1721599450256,2.81978,3546.4,3545.9,0.57396282]
[1721599450433,2.81978,3546.4,3546.0,2.45122126]
[1721599450806,2.81978,3546.4,3545.8,0.57396282]
[1721599451088,2.81978,3546.4,3545.9,2.45131661]
[1721599451292,2.81978,3546.4,3545.7,0.57396282]
[1721599451293,2.81978,3546.4,3545.6,0.57396282]
[1721599451596,2.81978,3546.4,3545.7,0.98056078]
[1721599451812,3.412,3547.2,3545.8,2.45118946]
[1721599452088,3.412,3547.2,3546.0,0.57396282]
[1721599452299,3.412,3547.2,3546.1,2.45115066]
[1721599452603,3.412,3547.2,3545.6,1.47079572]
[1721599452604,2.81986,3546.3,3545.6,1.47079572]
[1721599452756,2.81952,3546.7,3545.5,2.89]
[1721599452963,2.81977,3546.4,3545.5,2.89]
[1721599453266,0.281952,3546.7,3545.5,2.89]
[1721599453618,0.281952,3546.7,3544.7,0.57396282]
[1721599453619,2.82095,3544.9,3544.7,0.57396282]
[1721599453760,2.82095,3544.9,3544.5,2.33173995]
[1721599453761,2.82137,3544.4,3543.7,3.39680128]
[1721599453965,2.82066,3545.3,3543.8,0.98106458]
[1721599454163,2.82095,3544.9,3543.9,0.5849408]
[1721599454359,0.0491,3545.5,3543.9,0.5849408]
[1721599454565,6.23299,3544.9,3543.9,0.5849408]
[1721599454910,6.23299,3544.9,3543.7,2.82283846]
[1721599454911,2.82112,3544.7,3543.7,2.82283846]
[1721599455103,2.82103,3544.8,3543.7,2.82283846]
[1721599455304,2.8212,3544.6,3543.7,2.82283846]
[1721599455463,2.82123,3544.6,3543.7,2.82283846]
[1721599455658,3.412,3544.9,3543.7,2.82283846]
[1721599455979,6.23295,3544.9,3543.8,0.57128385]
[1721599456163,3.412,3544.9,3543.7,2.82283846]
[1721599456370,2.82121,3544.6,3543.7,2.82283846]
[1721599456663,2.82111,3544.7,3543.7,2.82283846]
[1721599456887,2.82119,3544.6,3543.7,2.82283846]
[1721599457272,6.23296,3544.9,3543.7,2.82283846]
[1721599457496,2.82103,3544.8,3543.7,3.39412231]
[1721599457692,2.82119,3544.6,3543.7,3.39412231]
[1721599457893,6.23297,3544.9,3543.7,3.39412231]
[1721599458294,2.82104,3544.8,3543.7,3.39412231]
[1721599458613,3.412,3544.9,3543.7,2.82283846]
[1721599458614,2.82119,3544.6,3543.7,2.82283846]
[1721599458771,3.412,3544.9,3543.7,2.82283846]
[1721599459168,2.82108,3544.8,3543.7,2.82283846]
[1721599459585,2.82135,3544.4,3543.7,2.82283846]
[1721599459871,6.23303,3544.9,3543.7,2.82283846]
[1721599460071,4.317395,3544.9,3543.7,2.82283846]
[1721599460383,2.4274,3546.3,3543.8,0.05642544]
[1721599460384,6.23241,3545.6,3543.8,0.05642544]
[1721599460596,2.8205,3545.5,3543.9,2.82167]
[1721599460815,0.281952,3546.7,3544.6,2.82113]
[1721599461017,0.281952,3546.7,3544.7,3.33852026]
[1721599461172,3.101532,3546.7,3544.8,4.75039679]
[1721599461366,2.81958,3546.7,3545.0,4.694]
[1721599461574,2.4713,3547.4,3545.1,3.05639516]
[1721599461900,4.234,3548.5,3545.8,7.584]
[1721599461901,3.412,3547.5,3545.8,7.584]
[1721599462197,2.81767,3549.1,3545.8,7.584]
[1721599462198,2.4713,3549.7,3546.3,4.694]
[1721599462401,2.81788,3548.8,3547.4,2.81894]
[1721599462581,0.563563,3548.7,3547.5,2.81883]
[1721599462779,2.81754,3549.2,3547.6,0.0563637]
[1721599463020,2.4713,3549.7,3547.5,4.694]
[1721599463301,2.81722,3549.6,3547.8,2.81864]
[1721599463475,0.72660148,3549.9,3547.2,2.81906]
[1721599463683,3.412,3549.3,3547.0,2.89]
[1721599463902,2.81845,3548.1,3547.0,2.89]
[1721599464100,2.81823,3548.4,3547.0,2.89]
[1721599464305,0.3412,3549.2,3547.0,2.89]
[1721599464613,0.3412,3549.2,3547.0,5.76560695]
[1721599464614,2.81809,3548.5,3547.0,5.76560695]
[1721599464819,2.81797,3548.7,3547.2,2.81911]
[1721599464987,2.81771,3549.0,3547.2,2.81911]
[1721599464988,2.81784,3548.9,3547.5,2.81886]
[1721599465189,5.2877,3550.7,3547.2,3.6775937]
[1721599465190,3.412,3550.1,3548.5,4.694]
[1721599465516,3.412,3550.1,3548.4,2.89]
[1721599465517,2.81723,3549.6,3548.4,2.89]
[1721599466011,3.412,3550.1,3548.4,2.89]
[1721599466012,2.81762,3549.1,3548.4,2.89]
[1721599466216,2.817,3549.9,3548.4,2.89]
[1721599466217,2.81742,3549.4,3548.4,2.89]
[1721599466509,2.81759,3549.2,3548.0,2.82]
[1721599466874,2.81761,3549.1,3548.0,2.82]
[1721599467821,0.281742,3549.3,3548.0,2.82]
[1721599467974,2.81699,3549.9,3548.3,4.52323]
[1721599468174,2.81699,3549.9,3548.4,0.0563443]
[1721599468418,2.81714,3549.7,3548.4,0.0563443]
[1721599468587,2.18184831,3550.0,3548.5,4.694]
[1721599468787,3.02290914,3550.0,3548.2,2.2619]
[1721599469092,2.81747,3549.3,3548.2,0.05635246]
[1721599469277,2.81747,3549.3,3548.0,2.82]
[1721599469278,2.81746,3549.3,3548.0,2.82]
[1721599469473,2.8177,3549.0,3548.0,2.82]
[1721599469703,2.81753,3549.2,3548.0,2.82]
[1721599469976,0.563499,3549.2,3548.0,2.82]
[1721599470201,2.8175,3549.3,3548.0,2.82]
[1721599470479,2.81746,3549.3,3548.0,2.82]
[1721599470877,2.81755,3549.2,3548.0,2.82]
[1721599471317,2.81737,3549.4,3548.0,2.82]
[1721599471513,2.8173,3549.5,3548.0,7.514]
[1721599471732,2.81744,3549.4,3548.1,0.80775274]
[1721599472026,2.81719,3549.7,3548.1,0.7514]
[1721599472231,2.81719,3549.7,3548.2,0.05634847]
[1721599472579,2.8173,3549.5,3548.3,0.05634807]
[1721599472919,3.412,3549.4,3548.0,2.82]
[1721599473261,3.412,3549.4,3547.5,0.2841]
[1721599473383,3.412,3549.4,3545.9,0.57396282]
[1721599473384,2.8192,3547.1,3547.0,0.2841]
[1721599473582,2.8192,3547.1,3545.8,2.3407]
[1721599473583,1.7945,3549.0,3545.8,2.3407]
[1721599473780,2.81984,3546.3,3545.8,2.82]
[1721599473975,2.82,3546.1,3545.8,2.82]
[1721599474583,2.81984,3546.3,3545.8,2.82]
[1721599474819,2.81999,3546.2,3545.8,2.82]
[1721599474977,2.82005,3546.1,3545.8,2.82]
[1721599475179,2.82005,3546.1,3545.5,2.89]
[1721599475379,2.82024,3545.8,3545.5,2.89]
[1721599475721,2.82024,3545.8,3544.2,2.4557]
[1721599475722,0.282024,3545.8,3544.2,2.4557]
[1721599475972,2.82082,3545.1,3544.2,2.4557]
[1721599476279,2.82082,3545.1,3543.8,1.705]
[1721599476280,2.82103,3544.8,3543.7,5.71283846]
[1721599476430,2.82135,3544.4,3543.7,2.82283846]
[1721599476628,3.412,3545.7,3543.7,2.82283846]
[1721599476629,2.82079,3545.1,3543.7,2.82283846]
[1721599476863,2.82112,3544.7,3543.5,2.82]
[1721599477064,2.82135,3544.4,3543.5,2.82]
[1721599477439,2.82123,3544.6,3543.5,2.82]
[1721599477865,2.82126,3544.6,3543.5,2.82]
[1721599478271,2.82127,3544.5,3543.5,2.82]
[1721599478470,2.82127,3544.5,3543.6,0.282]
[1721599479130,2.82135,3544.4,3543.6,0.282]
[1721599479332,2.82111,3544.7,3543.6,0.282]
[1721599479542,3.412,3545.7,3543.6,0.282]
[1721599479543,2.8209,3545.0,3543.6,3.10398]
[1721599479748,3.412,3545.7,3543.7,4.52684]
[1721599479749,2.82059,3545.4,3543.7,4.52684]
[1721599479946,2.82072,3545.2,3543.8,3.94566377]
[1721599480188,3.102334,3545.8,3544.2,2.82143]
[1721599480486,3.102334,3545.8,3543.9,7.57211754]
[1721599480645,0.0008,3546.2,3544.0,7.694]
[1721599480844,0.0008,3546.2,3544.3,2.8214]
[1721599481057,0.0008,3546.2,3544.4,7.694]
[1721599481260,0.0008,3546.2,3545.1,2.82079]
[1721599481568,0.0008,3546.2,3545.2,3.102779]
[1721599481942,0.0008,3546.2,3545.2,0.282079]
[1721599482556,0.0008,3546.2,3545.3,2.82062]
[1721599482868,0.0008,3546.2,3545.2,0.282079]
[1721599483462,2.3775,3547.6,3545.4,2.82054]
[1721599483463,2.8189,3547.5,3545.4,2.82054]
[1721599483662,2.8194,3546.9,3545.5,0.8833621]
[1721599483871,2.3775,3547.6,3545.5,0.8833621]
[1721599483872,2.81909,3547.3,3545.6,0.05639217]
[1721599484076,2.81909,3547.3,3545.6,4.03691173]
[1721599484273,2.81896,3547.4,3546.0,2.82]
[1721599484490,2.4428,3548.4,3545.7,9.96569203]
[1721599484491,2.81847,3548.1,3546.5,2.81966]
[1721599484692,7.48,3549.1,3546.6,0.33834273]
[1721599484895,7.48,3549.1,3546.8,2.81943]
[1721599485094,2.81763,3549.1,3546.9,0.98029841]
[1721599485292,2.81824,3548.4,3547.0,5.8444137]
[1721599485494,2.81827,3548.3,3547.1,2.45119088]
[1721599485680,2.81783,3548.9,3547.2,1.28281378]
[1721599485996,2.81771,3549.0,3547.5,2.81881]
[1721599486301,0.64349091,3549.9,3547.8,3.39259282]
[1721599486302,2.8173,3549.5,3547.8,3.39259282]
[1721599486597,2.81755,3549.2,3547.9,3.08083708]
[1721599486900,2.81825,3548.3,3548.0,0.97991937]
[1721599487105,0.64349091,3549.9,3547.2,0.57396282]
[1721599487106,2.81888,3547.5,3547.2,0.57396282]
[1721599487259,2.8179,3548.8,3546.9,0.57396282]
[1721599487260,2.81904,3547.3,3546.9,0.57396282]
[1721599487462,2.81952,3546.7,3546.4,0.57396282]
[1721599487796,2.81952,3546.7,3546.1,1.15259359]
[1721599487797,2.81926,3547.1,3545.7,0.57396282]
[1721599487994,2.81926,3547.1,3545.3,1.15259359]
[1721599487995,2.81987,3546.3,3545.8,2.45145151]
[1721599488170,2.81926,3547.1,3545.5,0.57396282]
[1721599488171,2.81966,3546.6,3545.5,0.57396282]
[1721599488383,2.81945,3546.8,3545.6,3.02548147]
[1721599488589,2.81945,3546.8,3545.7,3.02548147]
[1721599488810,2.819,3547.4,3546.0,0.55138093]
[1721599488811,2.81905,3547.3,3546.0,0.55138093]
[1721599489110,2.81879,3547.7,3546.1,2.45151865]
[1721599489319,2.81881,3547.6,3546.5,0.86094423]
[1721599489469,0.281881,3547.6,3546.6,2.45151865]
[1721599489673,2.8185,3548.0,3546.2,0.86094423]
[1721599489873,4.51764,3549.1,3546.1,0.86094423]
[1721599489874,2.81936,3546.9,3546.1,0.86094423]
[1721599490075,3.412,3547.4,3545.7,0.86094423]
[1721599490076,2.81999,3546.1,3545.7,0.86094423]
[1721599490289,2.82005,3546.1,3545.4,0.86094423]
[1721599490580,2.81955,3546.7,3544.5,0.86094423]
[1721599490775,2.82004,3546.1,3544.5,0.86094423]
[1721599491005,2.82115,3544.7,3544.5,0.86094423]
[1721599491635,2.82119,3544.6,3544.5,0.86094423]
[1721599491808,2.82092,3545.0,3544.5,0.86094423]
[1721599492016,2.81999,3546.2,3544.5,0.86094423]
[1721599492233,0.281999,3546.1,3544.5,0.86094423]
[1721599492403,2.82054,3545.5,3544.5,0.86094423]
[1721599492606,2.82017,3545.9,3544.5,3.68213423]
[1721599492926,2.8203,3545.8,3544.5,0.86094423]
[1721599493224,2.82048,3545.5,3544.5,0.86094423]
[1721599493442,2.8201,3546.0,3544.5,0.86094423]
[1721599493625,2.82028,3545.8,3544.6,0.48349478]
[1721599493794,2.82033,3545.7,3544.5,0.86094423]
[1721599494001,2.82044,3545.6,3544.5,0.86094423]
[1721599494439,2.82055,3545.4,3544.5,0.86094423]
[1721599494849,2.8206,3545.4,3544.5,0.86094423]
[1721599495007,5.64123,3545.4,3544.5,0.86094423]
[1721599495344,2.82063,3545.3,3544.5,0.86094423]
[1721599495551,2.82063,3545.3,3544.0,5.82165]
[1721599495704,2.82063,3545.3,3544.1,1.58569693]
[1721599495921,2.82081,3545.1,3544.1,1.58569693]
[1721599496127,5.64134,3545.3,3544.1,1.58569693]
[1721599496478,2.8197,3546.5,3543.9,2.45131928]
[1721599496760,2.82113,3544.7,3543.9,2.45131928]
[1721599496932,2.82103,3544.8,3543.9,2.45131928]
[1721599497456,2.82112,3544.7,3543.9,2.45131928]
[1721599497638,2.82096,3544.9,3543.9,2.42941713]
[1721599497960,2.82086,3545.1,3543.9,2.42941713]
[1721599498163,3.412,3546.3,3543.9,2.42941713]
[1721599498164,2.82125,3544.6,3543.9,2.42941713]
[1721599498466,2.82103,3544.8,3543.9,2.42941713]
[1721599498765,10.84983,3546.4,3543.9,2.42941713]
[1721599498766,7.48,3546.4,3543.9,2.42941713]
[1721599498922,2.82054,3545.5,3544.1,2.82158]
[1721599499121,2.82028,3545.8,3543.6,0.05642875]
[1721599499357,2.82028,3545.8,3544.3,2.82142]
[1721599499657,1.7,3548.2,3544.3,2.82142]
[1721599499658,2.81859,3547.9,3544.8,2.82102]
[1721599499859,2.4505,3547.5,3545.2,2.8207]
[1721599500164,2.82024,3545.8,3544.5,5.2676]
[1721599500367,2.82024,3545.8,3543.1,2.82231]
[1721599500368,2.82021,3545.9,3543.8,0.2841]
[1721599500670,2.82015,3545.9,3544.2,2.82144]
[1721599500822,2.82015,3545.9,3543.8,3.0]
[1721599500823,8.68184,3547.0,3544.4,2.989]
[1721599501048,2.81835,3548.2,3546.0,1.705]
[1721599501283,0.35,3548.3,3546.2,4.694]
[1721599501580,0.35,3548.3,3546.7,4.694]
[1721599501781,0.64349091,3549.9,3547.6,2.81877]
[1721599501954,2.81776,3549.0,3547.4,2.81893]
[1721599502143,0.56423092,3549.8,3547.4,2.81893]
[1721599502144,2.81787,3548.8,3547.4,2.81893]
[1721599502348,2.81787,3548.8,3546.3,2.2951]
[1721599502349,2.4816,3548.8,3546.3,2.2951]
[1721599502691,2.4816,3548.8,3545.5,2.89]
[1721599502692,2.81924,3547.1,3545.8,2.97809785]
[1721599502984,2.4816,3548.8,3545.9,2.989]
[1721599503197,2.4816,3549.6,3547.3,1.705]
[1721599503496,0.35,3549.1,3547.3,1.76136317]
[1721599503645,2.81742,3549.4,3547.4,1.705]
[1721599503841,2.81743,3549.4,3547.7,2.81872]
[1721599504040,2.4816,3549.6,3548.2,2.81833]
[1721599504293,2.4816,3549.6,3547.6,0.05635856]
[1721599504294,0.58630109,3549.5,3547.6,0.05635856]
[1721599504495,0.56423092,3549.8,3548.1,1.705]
[1721599504644,2.18184831,3550.0,3548.8,2.81778]
[1721599504847,2.18184831,3550.0,3548.9,0.05634857]
[1721599505261,2.18184831,3550.0,3549.1,2.81761]